fUST/lending_fUST_20260515
["ID","MTS","AMOUNT","RATE_DAILY","PERIOD"]
[422338328,1778847038000,-5432.90052902,0.00010952,2]
[422338322,1778847038000,-182.654,0.0001081,2]
[422338325,1778847038000,-151.0,0.00010951,2]
[422338326,1778847038000,-162.380719,0.00010951,2]
[422338321,1778847038000,-152.0,0.0001081,7]
[422338323,1778847038000,-179.39198899,0.00010858,2]
[422338327,1778847038000,-537.6845,0.00010951,2]
[422338324,1778847038000,-4797.453456,0.000109,30]
[422338332,1778847038000,-10235.58178745,0.00010958,2]
[422338344,1778847043000,-1197.10362736,0.00010958,2]
[422338346,1778847043000,-5580.86431243,0.00010958,2]
[422338347,1778847043000,-2698.04855124,0.00010958,2]
[422338348,1778847043000,-6718.501097,0.00010958,2]
[422338350,1778847043000,-16346.81602389,0.00010958,2]
[422338349,1778847043000,-813.23633527,0.00010958,2]
[422338351,1778847044000,-2408.86898391,0.00010958,2]
[422338352,1778847044000,-657.5484785,0.00010958,2]
[422338354,1778847044000,-552.0,0.00010958,2]
[422338353,1778847044000,-7649.64680441,0.00010958,2]
[422338358,1778847044000,-10700.67679089,0.00010958,2]
[422338359,1778847044000,-10064.35087487,0.00010958,2]
[422338369,1778847046000,-1884.34025907,0.00010848,2]
[422338370,1778847046000,-8053.83389602,0.00010958,2]
[422338371,1778847046000,-2085.1481592,0.00010958,2]
[422338411,1778847047000,-1088.32,0.00010958,2]
[422338412,1778847047000,-500.0,0.00010958,2]
[422338402,1778847047000,-735.29,0.00010958,2]
[422338410,1778847047000,-500.0,0.00010958,2]
[422338413,1778847047000,-500.0,0.00010958,2]
[422338377,1778847047000,-500.0,0.00010958,2]
[422338404,1778847047000,-500.0,0.00010958,2]
[422338406,1778847047000,-500.0,0.00010958,2]
[422338405,1778847047000,-537.99,0.00010958,2]
[422338407,1778847047000,-500.0,0.00010958,2]
[422338415,1778847047000,-500.0,0.00010958,2]
[422338409,1778847047000,-500.0,0.00010958,2]
[422338418,1778847047000,-4072.56,0.00010958,2]
[422338438,1778847047000,-500.0,0.00010958,2]
[422338417,1778847047000,-536.25806146,0.00010958,2]
[422338422,1778847047000,-1188.75,0.00010958,2]
[422338419,1778847047000,-381.00334116,0.00010958,2]
[422338416,1778847047000,-500.0,0.00010958,2]
[422338420,1778847047000,-500.0,0.00010958,2]
[422338421,1778847047000,-625.69,0.00010958,2]
[422338424,1778847047000,-3853.58,0.00010958,2]
[422338423,1778847047000,-500.0,0.00010958,2]
[422338425,1778847047000,-790.42,0.00010958,2]
[422338427,1778847047000,-1441.77,0.00010958,2]
[422338408,1778847047000,-500.0,0.00010958,2]
[422338437,1778847047000,-1476.42,0.00010958,2]
[422338414,1778847047000,-500.0,0.00010958,2]
[422338403,1778847047000,-500.0,0.00010958,2]
[422338400,1778847047000,-500.0,0.00010958,2]
[422338392,1778847047000,-500.0,0.00010958,2]
[422338372,1778847047000,-795.18,0.00010958,2]
[422338378,1778847047000,-500.0,0.00010958,2]
[422338375,1778847047000,-500.0,0.00010958,2]
[422338374,1778847047000,-500.0,0.00010958,2]
[422338373,1778847047000,-500.0,0.00010958,2]
[422338376,1778847047000,-875.94,0.00010958,2]
[422338380,1778847047000,-500.0,0.00010958,2]
[422338381,1778847047000,-500.0,0.00010958,2]
[422338383,1778847047000,-670.72,0.00010958,2]
[422338382,1778847047000,-510.14965068,0.00010958,2]
[422338384,1778847047000,-502.22224918,0.00010958,2]
[422338386,1778847047000,-1101.81,0.00010958,2]
[422338401,1778847047000,-500.0,0.00010958,2]
[422338385,1778847047000,-500.0,0.00010958,2]
[422338389,1778847047000,-500.0,0.00010958,2]
[422338430,1778847047000,-990.59,0.00010958,2]
[422338399,1778847047000,-587.29,0.00010958,2]
[422338388,1778847047000,-500.0,0.00010958,2]
[422338394,1778847047000,-580.53,0.00010958,2]
[422338397,1778847047000,-2867.1545,0.00010958,2]
[422338390,1778847047000,-500.0,0.00010958,2]
[422338393,1778847047000,-500.0,0.00010958,2]
[422338398,1778847047000,-500.0,0.00010958,2]
[422338391,1778847047000,-527.26,0.00010958,2]
[422338395,1778847047000,-501.06687545,0.00010958,2]
[422338396,1778847047000,-500.0,0.00010958,2]
[422338387,1778847047000,-407.82832379,0.00010958,2]
[422338431,1778847047000,-500.0,0.00010958,2]
[422338379,1778847047000,-500.0,0.00010958,2]
[422338428,1778847047000,-500.0,0.00010958,2]
[422338464,1778847047000,-500.0,0.00010958,2]
[422338465,1778847047000,-4133.31,0.00010958,2]
[422338470,1778847047000,-805.27,0.00010958,2]
[422338467,1778847047000,-687.19,0.00010958,2]
[422338468,1778847047000,-90.65898286,0.00010958,2]
[422338469,1778847047000,-734.52101714,0.00010958,2]
[422338466,1778847047000,-500.0,0.00010958,2]
[422338476,1778847047000,-737.87,0.00010958,2]
[422338477,1778847047000,-210.47854398,0.00010958,2]
[422338471,1778847047000,-500.0,0.00010958,2]
[422338473,1778847047000,-500.0,0.00010958,2]
[422338475,1778847047000,-2424.94,0.00010958,2]
[422338472,1778847047000,-500.0,0.00010958,2]
[422338474,1778847047000,-786.22,0.00010958,2]
[422338479,1778847047000,-500.0,0.00010958,2]
[422338478,1778847047000,-400.12145602,0.00010958,2]
[422338490,1778847047000,-324.13558072,0.00010958,2]
[422338489,1778847047000,-638.13,0.00010958,2]
[422338480,1778847047000,-500.0,0.00010958,2]
[422338488,1778847047000,-1853.5049,0.00010958,2]
[422338481,1778847047000,-500.0,0.00010958,2]
[422338484,1778847047000,-500.0,0.00010958,2]
[422338483,1778847047000,-4264.57,0.00010958,2]
[422338486,1778847047000,-500.0,0.00010958,2]
[422338485,1778847047000,-920.45,0.00010958,2]
[422338482,1778847047000,-500.0,0.00010958,2]
[422338487,1778847047000,-500.0,0.00010958,2]
[422338432,1778847047000,-576.5,0.00010958,2]
[422338461,1778847047000,-500.0,0.00010958,2]
[422338454,1778847047000,-491.28978007,0.00010958,2]
[422338459,1778847047000,-687.48585411,0.00010958,2]
[422338429,1778847047000,-500.0,0.00010958,2]
[422338426,1778847047000,-532.86,0.00010958,2]
[422338435,1778847047000,-829.44,0.00010958,2]
[422338433,1778847047000,-524.28,0.00010958,2]
[422338434,1778847047000,-508.84218985,0.00010958,2]
[422338436,1778847047000,-500.0,0.00010958,2]
[422338439,1778847047000,-846.85,0.00010958,2]
[422338444,1778847047000,-500.0,0.00010958,2]
[422338441,1778847047000,-500.0,0.00010958,2]
[422338442,1778847047000,-500.0,0.00010958,2]
[422338448,1778847047000,-2002.99,0.00010958,2]
[422338445,1778847047000,-715.7,0.00010958,2]
[422338463,1778847047000,-1202.17,0.00010958,2]
[422338443,1778847047000,-754.76,0.00010958,2]
[422338450,1778847047000,-500.0,0.00010958,2]
[422338458,1778847047000,-1690.84,0.00010958,2]
[422338455,1778847047000,-835.53,0.00010958,2]
[422338462,1778847047000,-713.5,0.00010958,2]
[422338460,1778847047000,-1437.38414589,0.00010958,2]
[422338440,1778847047000,-427.4987479,0.00010958,2]
[422338457,1778847047000,-500.0,0.00010958,2]
[422338456,1778847047000,-1260.98,0.00010958,2]
[422338452,1778847047000,-977.03,0.00010958,2]
[422338447,1778847047000,-1048.37,0.00010958,2]
[422338451,1778847047000,-755.31,0.00010958,2]
[422338449,1778847047000,-511.63931622,0.00010958,2]
[422338446,1778847047000,-510.54233074,0.00010958,2]
[422338453,1778847047000,-500.0,0.00010958,2]
[422338497,1778847883000,-151.0,8.708e-05,2]
[422338527,1778848231000,-384.768375,8.167e-05,2]
[422338809,1778848237000,-4615.231625,8.167e-05,2]
[422338812,1778848237000,-300.0,8.249e-05,2]
[422338811,1778848237000,-300.0,8.249e-05,2]
[422338810,1778848237000,-292.58508505,8.208e-05,2]
[422338862,1778848238000,-500.0,0.00010754,2]
[422338838,1778848238000,-345.25040036,0.00010208,2]
[422338841,1778848238000,-354.37494342,0.0001041,2]
[422338837,1778848238000,-2351.0,9.982e-05,2]
[422338846,1778848238000,-160.0,0.00010747,2]
[422338856,1778848238000,-337.57581675,0.00010754,2]
[422338845,1778848238000,-169.48393679,0.000107,2]
[422338849,1778848238000,-500.0,0.00010754,2]
[422338847,1778848238000,-500.0,0.00010754,2]
[422338848,1778848238000,-500.0,0.00010754,2]
[422338854,1778848238000,-500.0,0.00010754,2]
[422338851,1778848238000,-500.0,0.00010754,2]
[422338852,1778848238000,-500.0,0.00010754,2]
[422338855,1778848238000,-220.64673228,0.00010754,2]
[422338843,1778848238000,-167.17776562,0.000107,2]
[422338850,1778848238000,-500.0,0.00010754,2]
[422338859,1778848238000,-500.0,0.00010754,2]
[422338857,1778848238000,-500.0,0.00010754,2]
[422338858,1778848238000,-500.0,0.00010754,2]
[422338868,1778848238000,-298.87195762,0.00010754,2]
[422338869,1778848238000,-500.0,0.00010754,2]
[422338865,1778848238000,-500.0,0.00010754,2]
[422338870,1778848238000,-500.0,0.00010754,2]
[422338867,1778848238000,-500.0,0.00010754,2]
[422338866,1778848238000,-500.0,0.00010754,2]
[422338860,1778848238000,-500.0,0.00010754,2]
[422338861,1778848238000,-500.0,0.00010754,2]
[422338853,1778848238000,-185.58313279,0.00010754,2]
[422338863,1778848238000,-612.65633227,0.00010754,2]
[422338840,1778848238000,-500.0,0.00010409,2]
[422338813,1778848238000,-1200.0,8.249e-05,2]
[422338814,1778848238000,-29107.1691364,8.25e-05,2]
[422338815,1778848238000,-300.0,8.414e-05,2]
[422338817,1778848238000,-300.0,8.414e-05,2]
[422338816,1778848238000,-300.0,8.414e-05,2]
[422338819,1778848238000,-300.0,8.414e-05,2]
[422338820,1778848238000,-300.0,8.414e-05,2]
[422338818,1778848238000,-300.0,8.414e-05,2]
[422338821,1778848238000,-300.0,8.414e-05,2]
[422338825,1778848238000,-300.0,8.414e-05,2]
[422338822,1778848238000,-300.0,8.414e-05,2]
[422338824,1778848238000,-300.0,8.414e-05,2]
[422338833,1778848238000,-4020.4069484,8.796e-05,2]
[422338823,1778848238000,-300.0,8.414e-05,2]
[422338830,1778848238000,-502.0515336,8.517e-05,2]
[422338829,1778848238000,-300.0,8.414e-05,2]
[422338826,1778848238000,-300.0,8.414e-05,2]
[422338827,1778848238000,-300.0,8.414e-05,2]
[422338828,1778848238000,-300.0,8.414e-05,2]
[422338832,1778848238000,-220.0364683,8.713e-05,2]
[422338834,1778848238000,-420.0,9.074e-05,2]
[422338842,1778848238000,-156.56988412,0.000107,2]
[422338839,1778848238000,-864.0,0.00010383,2]
[422338836,1778848238000,-720.0,9.439e-05,2]
[422338835,1778848238000,-1680.0,9.074e-05,2]
[422338844,1778848238000,-171.05133832,0.000107,2]
[422338831,1778848238000,-600.0,8.581e-05,2]
[422338864,1778848238000,-500.0,0.00010754,2]
[422338896,1778848238000,-815.2750787,0.00010755,2]
[422338872,1778848238000,-500.0,0.00010754,2]
[422338906,1778848238000,-831.58058029,0.00010755,2]
[422338905,1778848238000,-831.58058029,0.00010755,2]
[422338903,1778848238000,-815.2750787,0.00010755,2]
[422338902,1778848238000,-815.2750787,0.00010755,2]
[422338909,1778848238000,-831.58058029,0.00010755,2]
[422338911,1778848238000,-831.58058029,0.00010755,2]
[422338912,1778848238000,-831.58058029,0.00010755,2]
[422338910,1778848238000,-831.58058029,0.00010755,2]
[422338913,1778848238000,-831.58058029,0.00010755,2]
[422338914,1778848238000,-302370.18849419,0.00010756,2]
[422338915,1778848238000,-270602.28155585,0.00010756,2]
[422338917,1778848238000,-152.0,0.00010814,7]
[422338904,1778848238000,-831.58058029,0.00010755,2]
[422338922,1778848238000,-151.0,0.00010951,2]
[422338920,1778848238000,-151.217223,0.00010858,2]
[422338919,1778848238000,-161.65638237,0.00010838,2]
[422338921,1778848238000,-151.0,0.00010858,2]
[422338918,1778848238000,-160.0,0.00010838,2]
[422338924,1778848238000,-283.30998721,0.00010958,2]
[422338923,1778848238000,-500.0,0.00010957,2]
[422338926,1778848238000,-1563.8611194,0.00010958,2]
[422338928,1778848238000,-1011.9,0.00010958,2]
[422338925,1778848238000,-1180.1608,0.00010958,2]
[422338929,1778848238000,-500.0,0.00010958,2]
[422338927,1778848238000,-500.0,0.00010958,2]
[422338930,1778848238000,-500.0,0.00010958,2]
[422338916,1778848238000,-176.877,0.0001078,2]
[422338881,1778848238000,-500.0,0.00010754,2]
[422338900,1778848238000,-815.2750787,0.00010755,2]
[422338901,1778848238000,-815.2750787,0.00010755,2]
[422338882,1778848238000,-500.0,0.00010754,2]
[422338880,1778848238000,-500.0,0.00010754,2]
[422338871,1778848238000,-500.0,0.00010754,2]
[422338874,1778848238000,-500.0,0.00010754,2]
[422338876,1778848238000,-500.0,0.00010754,2]
[422338879,1778848238000,-500.0,0.00010754,2]
[422338873,1778848238000,-500.0,0.00010754,2]
[422338875,1778848238000,-500.0,0.00010754,2]
[422338877,1778848238000,-500.0,0.00010754,2]
[422338878,1778848238000,-500.0,0.00010754,2]
[422338883,1778848238000,-500.0,0.00010754,2]
[422338884,1778848238000,-500.0,0.00010754,2]
[422338907,1778848238000,-831.58058029,0.00010755,2]
[422338894,1778848238000,-815.2750787,0.00010755,2]
[422338890,1778848238000,-815.2750787,0.00010755,2]
[422338908,1778848238000,-831.58058029,0.00010755,2]
[422338899,1778848238000,-815.2750787,0.00010755,2]
[422338898,1778848238000,-815.2750787,0.00010755,2]
[422338897,1778848238000,-815.2750787,0.00010755,2]
[422338895,1778848238000,-815.2750787,0.00010755,2]
[422338892,1778848238000,-815.2750787,0.00010755,2]
[422338893,1778848238000,-815.2750787,0.00010755,2]
[422338888,1778848238000,-301.05560986,0.00010755,2]
[422338887,1778848238000,-815.2750787,0.00010755,2]
[422338885,1778848238000,-500.0,0.00010755,2]
[422338889,1778848238000,-815.2750787,0.00010755,2]
[422338886,1778848238000,-815.2750787,0.00010755,2]
[422338891,1778848238000,-815.2750787,0.00010755,2]
[422338933,1778848239000,-500.0,0.00010958,2]
[422338931,1778848239000,-1381.69,0.00010958,2]
[422338937,1778848239000,-500.0,0.00010958,2]
[422338932,1778848239000,-12939.7794554,0.00010958,2]
[422338935,1778848239000,-562.82,0.00010958,2]
[422338934,1778848239000,-500.0,0.00010958,2]
[422338936,1778848239000,-289.4751021,0.00010958,2]
[422338938,1778848239000,-500.0,0.00010958,2]
[422338939,1778848239000,-500.0,0.00010958,2]
[422338942,1778848239000,-500.0,0.00010958,2]
[422338940,1778848239000,-267.4638651,0.00010958,2]
[422338941,1778848239000,-248.1061349,0.00010958,2]
[422338943,1778848239000,-500.0,0.00010958,2]
[422338944,1778848239000,-500.0,0.00010958,2]
[422338947,1778848239000,-210.42467248,0.00010958,2]
[422338946,1778848239000,-500.0,0.00010958,2]
[422338945,1778848239000,-500.0,0.00010958,2]
[422338966,1778848240000,-316.73702623,0.00010958,2]
[422338962,1778848240000,-500.0,0.00010958,2]
[422338961,1778848240000,-289.57532752,0.00010958,2]
[422338963,1778848240000,-565.83119054,0.00010958,2]
[422338964,1778848240000,-500.0,0.00010958,2]
[422338968,1778848240000,-811.57,0.00010958,2]
[422338965,1778848240000,-62.45300862,0.00010958,2]
[422338967,1778848240000,-378.29996515,0.00010958,2]
[422338969,1778848240000,-500.0,0.00010958,2]
[422338974,1778848240000,-500.0,0.00010958,2]
[422338971,1778848240000,-512.37569477,0.00010958,2]
[422338975,1778848240000,-683.77,0.00010958,2]
[422338976,1778848240000,-791.43153458,0.00010958,2]
[422338973,1778848240000,-500.0,0.00010958,2]
[422338972,1778848240000,-500.0,0.00010958,2]
[422338970,1778848240000,-723.31,0.00010958,2]
[422339005,1778848246000,-1471.27,0.00010958,2]
[422339007,1778848246000,-500.0,0.00010958,2]
[422339015,1778848246000,-500.0,0.00010958,2]
[422339009,1778848246000,-663.4,0.00010958,2]
[422339010,1778848246000,-726.65,0.00010958,2]
[422339006,1778848246000,-500.0,0.00010958,2]
[422339004,1778848246000,-151.0,0.00010958,2]
[422339017,1778848246000,-704.65,0.00010958,2]
[422339020,1778848246000,-500.0,0.00010958,2]
[422339019,1778848246000,-581.99,0.00010958,2]
[422339018,1778848246000,-500.0,0.00010958,2]
[422339022,1778848246000,-1880.08,0.00010958,2]
[422339021,1778848246000,-861.7,0.00010958,2]
[422339024,1778848246000,-1284.2,0.00010958,2]
[422339032,1778848246000,-753.46,0.00010958,2]
[422339008,1778848246000,-2375.87,0.00010958,2]
[422339016,1778848246000,-591.45,0.00010958,2]
[422339011,1778848246000,-500.0,0.00010958,2]
[422338993,1778848246000,-707.12,0.00010958,2]
[422339003,1778848246000,-151.0,0.00010958,2]
[422338991,1778848246000,-500.0,0.00010958,2]
[422338989,1778848246000,-1291.26326131,0.00010958,2]
[422338987,1778848246000,-417.00846542,0.00010958,2]
[422338988,1778848246000,-745.06673869,0.00010958,2]
[422338990,1778848246000,-500.0,0.00010958,2]
[422338992,1778848246000,-500.0,0.00010958,2]
[422338994,1778848246000,-500.0,0.00010958,2]
[422339027,1778848246000,-500.0,0.00010958,2]
[422338995,1778848246000,-500.0,0.00010958,2]
[422338996,1778848246000,-515.42274306,0.00010958,2]
[422338998,1778848246000,-192.23187173,0.00010958,2]
[422338999,1778848246000,-307.76812827,0.00010958,2]
[422339000,1778848246000,-500.0,0.00010958,2]
[422339001,1778848246000,-500.0,0.00010958,2]
[422339002,1778848246000,-151.0,0.00010958,2]
[422339012,1778848246000,-500.0,0.00010958,2]
[422339013,1778848246000,-1116.85,0.00010958,2]
[422339014,1778848246000,-500.0,0.00010958,2]
[422339025,1778848246000,-500.0,0.00010958,2]
[422338997,1778848246000,-703.87,0.00010958,2]
[422339031,1778848246000,-1419.22,0.00010958,2]
[422339048,1778848246000,-882.09,0.00010958,2]
[422339049,1778848246000,-500.0,0.00010958,2]
[422339052,1778848246000,-6611.797953,0.00010958,2]
[422339051,1778848246000,-500.0,0.00010958,2]
[422339056,1778848246000,-3902.87,0.00010958,2]
[422339064,1778848246000,-658.52,0.00010958,2]
[422339058,1778848246000,-936.32,0.00010958,2]
[422339062,1778848246000,-1919.54,0.00010958,2]
[422339059,1778848246000,-1004.68,0.00010958,2]
[422339057,1778848246000,-747.2,0.00010958,2]
[422339063,1778848246000,-1678.73,0.00010958,2]
[422339060,1778848246000,-500.0,0.00010958,2]
[422339066,1778848246000,-590.36,0.00010958,2]
[422339065,1778848246000,-552.48,0.00010958,2]
[422339067,1778848246000,-1414.9,0.00010958,2]
[422339061,1778848246000,-500.0,0.00010958,2]
[422339026,1778848246000,-771.72,0.00010958,2]
[422339044,1778848246000,-500.0,0.00010958,2]
[422339047,1778848246000,-500.0,0.00010958,2]
[422339050,1778848246000,-500.0,0.00010958,2]
[422339046,1778848246000,-954.21,0.00010958,2]
[422339028,1778848246000,-1132.10670891,0.00010958,2]
[422339029,1778848246000,-432.47902229,0.00010958,2]
[422339023,1778848246000,-500.0,0.00010958,2]
[422339030,1778848246000,-1728.18617309,0.00010958,2]
[422339034,1778848246000,-554.95,0.00010958,2]
[422339055,1778848246000,-577.03,0.00010958,2]
[422339036,1778848246000,-730.03,0.00010958,2]
[422339035,1778848246000,-3693.02,0.00010958,2]
[422339040,1778848246000,-654.39,0.00010958,2]
[422339033,1778848246000,-500.0,0.00010958,2]
[422339039,1778848246000,-1996.5,0.00010958,2]
[422339038,1778848246000,-500.0,0.00010958,2]
[422339053,1778848246000,-800.91,0.00010958,2]
[422339045,1778848246000,-500.0,0.00010958,2]
[422339054,1778848246000,-500.0,0.00010958,2]
[422339041,1778848246000,-500.0,0.00010958,2]
[422339042,1778848246000,-794.88,0.00010958,2]
[422339037,1778848246000,-815.83,0.00010958,2]
[422339043,1778848246000,-949.32,0.00010958,2]
[422339076,1778848247000,-500.0,0.00010958,2]
[422339069,1778848247000,-500.0,0.00010958,2]
[422339071,1778848247000,-500.0,0.00010958,2]
[422339079,1778848247000,-1620.39,0.00010958,2]
[422339068,1778848247000,-500.0,0.00010958,2]
[422339074,1778848247000,-790.79,0.00010958,2]
[422339072,1778848247000,-500.0,0.00010958,2]
[422339070,1778848247000,-685.88,0.00010958,2]
[422339073,1778848247000,-500.0,0.00010958,2]
[422339077,1778848247000,-2323.9,0.00010958,2]
[422339078,1778848247000,-516.11356489,0.00010958,2]
[422339081,1778848247000,-585.16,0.00010958,2]
[422339080,1778848247000,-500.0,0.00010958,2]
[422339088,1778848247000,-3961.09,0.00010958,2]
[422339087,1778848247000,-1762.98,0.00010958,2]
[422339089,1778848247000,-500.0,0.00010958,2]
[422339090,1778848247000,-3161.82226913,0.00010958,2]
[422339082,1778848247000,-1152.08,0.00010958,2]
[422339085,1778848247000,-500.0,0.00010958,2]
[422339083,1778848247000,-1854.19,0.00010958,2]
[422339084,1778848247000,-890.97,0.00010958,2]
[422339086,1778848247000,-640.6,0.00010958,2]
[422339075,1778848247000,-800.71,0.00010958,2]
[422339091,1778848293000,-2489.5115578,9.969e-05,2]
[422339092,1778848390000,5100.0,7e-05,10]
[422339093,1778848413000,5073.82,7e-05,10]
[422339135,1778849432000,-684.61324983,7.362e-05,2]
[422339180,1778849438000,-300.0,8.822e-05,2]
[422339182,1778849438000,-156.30060668,9.087e-05,2]
[422339181,1778849438000,-8400.328685,8.873e-05,2]
[422339179,1778849438000,-300.0,8.822e-05,2]
[422339184,1778849438000,-809.10365478,9.087e-05,2]
[422339188,1778849438000,-674.39271816,9.458e-05,2]
[422339183,1778849438000,-1385.59573854,9.087e-05,2]
[422339185,1778849438000,-2489.5115578,9.123e-05,2]
[422339186,1778849438000,-8400.328685,9.232e-05,2]
[422339187,1778849438000,-587.0,9.413e-05,2]
[422339189,1778849438000,-500.0,9.458e-05,2]
[422339190,1778849438000,-588.76355085,9.458e-05,2]
[422339195,1778849438000,-500.0,9.458e-05,2]
[422339191,1778849438000,-274.74851084,9.458e-05,2]
[422339192,1778849438000,-500.0,9.458e-05,2]
[422339194,1778849438000,-500.0,9.458e-05,2]
[422339196,1778849438000,-618.49758808,9.458e-05,2]
[422339198,1778849438000,-690.67116308,9.458e-05,2]
[422339178,1778849438000,-300.0,8.822e-05,2]
[422339199,1778849438000,-690.67116308,9.458e-05,2]
[422339197,1778849438000,-690.67116308,9.458e-05,2]
[422339200,1778849438000,-690.67116308,9.458e-05,2]
[422339201,1778849438000,-690.67116308,9.458e-05,2]
[422339202,1778849438000,-690.67116308,9.458e-05,2]
[422339203,1778849438000,-690.67116308,9.458e-05,2]
[422339193,1778849438000,-285.36332791,9.458e-05,2]
[422339177,1778849438000,-300.0,8.822e-05,2]
[422339165,1778849438000,-1022.48886882,8.738e-05,2]
[422339175,1778849438000,-300.0,8.822e-05,2]
[422339204,1778849438000,-690.67116308,9.458e-05,2]
[422339150,1778849438000,-323.76412996,7.362e-05,2]
[422339152,1778849438000,-1200.0,7.51e-05,2]
[422339153,1778849438000,-3567.71318644,7.511e-05,2]
[422339151,1778849438000,-5000.0,7.436e-05,2]
[422339154,1778849438000,-300.0,7.682e-05,12]
[422339155,1778849438000,-300.0,7.779e-05,2]
[422339156,1778849438000,-298.22208707,7.78e-05,2]
[422339158,1778849438000,-176.747651,7.978e-05,2]
[422339159,1778849438000,-1680.0,8.261e-05,2]
[422339160,1778849438000,-219.0826527,8.291e-05,2]
[422339157,1778849438000,-300.0,7.976e-05,2]
[422339163,1778849438000,-8400.328685,8.515e-05,2]
[422339161,1778849438000,-300.0,8.291e-05,2]
[422339162,1778849438000,-598.00402032,8.291e-05,2]
[422339164,1778849438000,-420.0,8.557e-05,2]
[422339166,1778849438000,-300.0,8.822e-05,2]
[422339167,1778849438000,-300.0,8.822e-05,2]
[422339168,1778849438000,-300.0,8.822e-05,2]
[422339169,1778849438000,-300.0,8.822e-05,2]
[422339170,1778849438000,-300.0,8.822e-05,2]
[422339174,1778849438000,-300.0,8.822e-05,2]
[422339173,1778849438000,-300.0,8.822e-05,2]
[422339171,1778849438000,-300.0,8.822e-05,2]
[422339172,1778849438000,-300.0,8.822e-05,2]
[422339176,1778849438000,-300.0,8.822e-05,2]
[422339205,1778849438000,-690.67116308,9.458e-05,2]
[422339242,1778849438000,-151.5,0.00010409,2]
[422339208,1778849438000,-690.67116308,9.458e-05,2]
[422339238,1778849438000,-8400.328685,0.00010307,2]
[422339237,1778849438000,-161.65638237,0.00010279,2]
[422339239,1778849438000,-823.0,0.00010354,2]
[422339241,1778849438000,-292.52238375,0.00010409,2]
[422339244,1778849438000,-163.97579235,0.00010409,2]
[422339246,1778849438000,-151.5,0.00010409,2]
[422339245,1778849438000,-151.5,0.00010409,2]
[422339243,1778849438000,-151.5,0.00010409,2]
[422339248,1778849438000,-236.34769206,0.00010409,2]
[422339247,1778849438000,-151.5,0.00010409,2]
[422339250,1778849438000,-151.5,0.00010409,2]
[422339249,1778849438000,-151.5,0.00010409,2]
[422339253,1778849438000,-500.0,0.00010409,2]
[422339252,1778849438000,-151.5,0.00010409,2]
[422339255,1778849438000,-393.01507182,0.00010409,2]
[422339256,1778849438000,-151.5,0.00010409,2]
[422339254,1778849438000,-151.5,0.00010409,2]
[422339260,1778849438000,-189.85731787,0.00010409,2]
[422339257,1778849438000,-215.04220334,0.00010409,2]
[422339259,1778849438000,-151.5,0.00010409,2]
[422339258,1778849438000,-164.02470756,0.00010409,2]
[422339262,1778849438000,-174.18208216,0.00010409,2]
[422339263,1778849438000,-537.6845,0.00010409,2]
[422339261,1778849438000,-151.5,0.00010409,2]
[422339206,1778849438000,-690.67116308,9.458e-05,2]
[422339236,1778849438000,-2481.09826505,0.00010184,2]
[422339240,1778849438000,-500.0,0.00010402,2]
[422339251,1778849438000,-500.0,0.00010409,2]
[422339233,1778849438000,-1812.62053772,0.0001,2]
[422339212,1778849438000,-690.67116308,9.458e-05,2]
[422339235,1778849438000,-610.02431793,0.00010006,2]
[422339209,1778849438000,-690.67116308,9.458e-05,2]
[422339210,1778849438000,-690.67116308,9.458e-05,2]
[422339207,1778849438000,-690.67116308,9.458e-05,2]